bitfinex-derivatives/quotes_ETHF0:USTF0_20250816
["timestamp","ask_amount","ask_price","bid_price","bid_amount"]
[1755386948895,3.6223,4414.3,4414.2,22.3505]
[1755386949204,4.3076,4414.3,4414.2,22.3505]
[1755386949397,4.6712,4414.3,4414.2,22.3505]
[1755386950301,1.4634,4414.3,4414.2,22.3505]
[1755386950902,0.8688,4414.2,4413.8,0.3961]
[1755386951103,1.4634,4413.9,4413.8,1.4835]
[1755386951302,1.4634,4413.9,4413.8,22.3415]
[1755386951504,0.4904,4414.6,4414.0,0.499]
[1755386951805,0.90531682,4414.5,4414.4,1.4835]
[1755386952007,1.68911682,4414.5,4414.4,22.3415]
[1755386952308,1.68911682,4414.5,4414.4,22.0835]
[1755386953004,1.68911682,4414.5,4414.4,22.3415]
[1755386954201,1.4634,4414.5,4414.4,22.1005]
[1755386954500,1.68920629,4414.5,4414.4,22.0835]
[1755386954701,1.68921167,4414.5,4414.4,22.0835]
[1755386957712,1.68921167,4414.5,4414.4,22.3415]
[1755386960205,1.68985545,4414.5,4414.4,22.3415]
[1755386964115,1.68985545,4414.5,4414.4,22.0835]
[1755386966120,1.69004296,4414.5,4414.4,22.0835]
[1755386967621,1.69004296,4414.5,4414.4,20.858]
[1755386968617,1.69004296,4414.5,4414.4,21.2563]
[1755386971523,1.44994296,4414.5,4413.8,0.3983]
[1755386971720,1.4651,4414.0,4413.9,22.3326]
[1755386971918,1.1002,4414.0,4413.9,22.3326]
[1755386972514,1.4651,4414.0,4413.9,22.3326]
[1755386973529,1.69205454,4414.0,4413.9,22.3326]
[1755386974726,1.32715454,4414.0,4413.9,22.0744]
[1755386974928,1.69205454,4414.0,4413.9,22.3326]
[1755386975528,1.69205454,4414.0,4413.9,22.0744]
[1755386977332,0.5938,4413.8,4413.7,0.8361]
[1755386977527,1.69205454,4413.8,4413.7,21.9283]
[1755386977922,1.69205454,4413.8,4413.7,22.3266]
[1755386983434,1.4651,4413.8,4413.7,22.3266]
[1755386984135,1.69185685,4413.8,4413.7,22.3266]
[1755386984331,1.4651,4413.8,4413.7,22.3266]
[1755386989435,1.69370709,4413.8,4413.7,22.3266]
[1755386992639,1.69370709,4413.8,4413.7,22.0684]
[1755386994439,1.69370709,4413.8,4413.7,22.3208]
[1755386995237,1.69371623,4413.8,4413.7,22.3208]
[1755386997037,1.69371623,4413.8,4413.7,22.0684]
[1755387000842,1.4651,4413.8,4413.7,22.0684]
[1755387001045,1.6937845,4413.8,4413.7,22.0684]
[1755387001241,0.3442,4413.3,4413.2,3.8047]
[1755387001448,1.2211,4413.3,4413.2,25.5223]
[1755387001748,1.4823,4413.3,4413.2,25.5223]
[1755387002243,1.4823,4413.3,4413.2,4.4549]
[1755387002450,1.71105978,4413.3,4413.2,24.0198]
[1755387002646,0.2612,4413.6,4413.2,25.2669]
[1755387002845,0.22876859,4413.5,4413.4,1.4995]
[1755387003038,0.22876859,4413.5,4413.4,22.3115]
[1755387003245,0.2485,4413.5,4413.4,22.3115]
[1755387004249,1.2338,4414.2,4414.1,0.5969]
[1755387004457,1.46254843,4414.2,4414.1,21.4069]
[1755387004661,1.46254843,4414.2,4414.1,22.3095]
[1755387005064,1.71104843,4414.2,4414.1,22.3095]
[1755387005263,1.33104843,4414.2,4414.1,22.0571]
[1755387005459,1.71104843,4414.2,4414.1,22.0571]
[1755387006764,1.71104843,4414.2,4414.1,22.3095]
[1755387006958,1.33104843,4414.2,4414.1,22.3095]
[1755387007563,1.71104843,4414.2,4414.1,22.3095]
[1755387010264,0.22874843,4414.2,4414.1,22.0571]
[1755387010468,0.22874843,4414.2,4414.1,22.3095]
[1755387011364,0.2485,4414.5,4414.1,22.3095]
[1755387011669,1.4823,4414.5,4414.4,4.7073]
[1755387011865,1.7109559,4414.5,4414.4,25.5123]
[1755387012968,0.8212559,4414.5,4414.4,20.802]
[1755387013465,0.8212559,4414.5,4414.4,21.1979]
[1755387013667,1.7109559,4414.5,4414.4,21.4522]
[1755387014168,1.7109559,4414.5,4414.4,22.3015]
[1755387014570,1.7109559,4414.5,4414.4,22.0491]
[1755387015972,1.4823,4414.3,4414.2,3.2078]
[1755387016169,1.7109559,4414.3,4414.2,24.0088]
[1755387017164,1.7109559,4414.3,4412.8,2.83717844]
[1755387017165,0.5926,4413.5,4413.4,3.6449]
[1755387017471,1.4823,4413.5,4413.4,25.2539]
[1755387019069,1.71079612,4413.5,4412.9,3.4564]
[1755387019273,0.579,4413.0,4412.9,3.2078]
[1755387019470,1.4754,4413.0,4412.9,25.2063]
[1755387020974,1.4754,4413.0,4412.9,24.0038]
[1755387021371,1.4754,4413.0,4412.9,24.3724]
[1755387021775,1.4754,4413.0,4412.9,24.0038]
[1755387023372,1.4754,4413.0,4412.9,25.2053]
[1755387028076,1.4754,4413.0,4412.9,25.2023]
[1755387029478,1.4754,4413.0,4412.9,3.2078]
[1755387029779,0.579,4412.5,4412.0,0.2486]
[1755387030077,1.4754,4412.1,4412.0,1.4438]
[1755387030280,1.4754,4412.1,4412.0,22.2358]
[1755387031681,1.4754,4412.1,4412.0,0.9529]
[1755387031877,1.4754,4412.1,4412.0,21.9955]
[1755387032081,1.4754,4412.1,4412.0,20.793]
[1755387032278,1.4754,4412.1,4412.0,21.8322]
[1755387032585,1.4754,4412.1,4412.0,21.9945]
[1755387034577,0.2613,4412.7,4412.1,0.6172]
[1755387034783,1.0598,4412.7,4412.6,1.4438]
[1755387034985,1.4754,4412.7,4412.6,22.2358]
[1755387035886,1.4754,4412.7,4412.6,21.9935]
[1755387038286,1.4754,4412.7,4412.6,21.7449]
[1755387038885,1.4754,4412.7,4412.6,21.9935]
[1755387041589,1.4754,4412.7,4412.6,22.2358]
[1755387042291,0.419,4412.7,4412.6,21.9935]
[1755387042498,1.4754,4413.3,4413.2,1.2015]
[1755387042687,1.4754,4413.3,4413.2,22.2308]
[1755387043292,1.4754,4413.3,4413.2,21.9885]
[1755387045393,1.70547454,4413.3,4413.2,21.9885]
[1755387046990,1.70547454,4413.3,4413.2,22.2308]
[1755387047493,1.70547454,4413.3,4413.2,21.9885]
[1755387048297,1.70547454,4413.3,4413.2,20.787]
[1755387051491,1.70547454,4413.3,4413.2,21.1779]
[1755387053998,1.70547454,4413.3,4413.2,22.0095]
[1755387054494,0.64907454,4413.3,4413.2,22.0095]
[1755387054694,1.68267454,4413.3,4413.2,21.7651]
[1755387054899,1.68267454,4413.3,4413.2,22.0095]
[1755387055697,1.68267454,4413.3,4413.2,22.2557]
[1755387056598,0.23007454,4413.3,4413.2,22.0095]
[1755387056995,0.23007454,4413.3,4413.2,22.2557]
[1755387057196,0.63897454,4413.3,4413.2,22.0095]
[1755387057396,1.68267454,4413.3,4413.2,22.0095]
[1755387058502,1.68267454,4413.3,4413.2,22.2557]
[1755387062008,1.68267454,4413.3,4413.2,22.0095]
[1755387065805,0.47787454,4413.3,4413.2,22.2557]
[1755387066108,0.23007454,4413.3,4413.2,22.2557]
[1755387066308,3.2078,4413.6,4413.2,22.2783]
[1755387066510,0.23271886,4413.5,4413.3,0.8815]
[1755387066809,3.2078,4413.6,4413.5,1.4687]
[1755387067003,0.23270765,4413.6,4413.5,1.4687]
[1755387067209,3.2078,4414.2,4413.6,0.8815]
[1755387067502,3.8625,4414.2,4414.1,1.4687]
[1755387067810,0.23268825,4414.2,4414.1,22.2367]
[1755387068004,3.2078,4414.7,4414.1,22.2367]
[1755387068005,3.2078,4414.7,4414.6,0.5872]
[1755387068211,3.2078,4415.2,4414.7,0.6353]
[1755387068412,0.72606558,4415.1,4415.0,1.4687]
[1755387068612,0.88716558,4415.1,4415.0,22.2367]
[1755387068813,1.68506558,4415.1,4415.0,22.2367]
[1755387069813,0.335,4414.6,4414.5,3.2078]
[1755387070009,0.853,4414.5,4414.0,3.2078]
[1755387070210,1.4526,4414.2,4414.1,20.764]
[1755387070414,1.4526,4414.2,4414.1,21.5749]
[1755387070610,1.4526,4414.2,4414.1,21.9865]
[1755387071012,1.4526,4414.2,4413.8,32.628]
[1755387071316,3.2078,4414.7,4413.8,32.628]
[1755387071317,1.4526,4413.9,4413.8,33.0189]
[1755387071516,1.4526,4413.9,4413.8,54.0263]
[1755387072409,1.4526,4413.9,4413.8,54.2725]
[1755387072616,1.4526,4413.9,4413.8,54.0263]
[1755387077920,1.4526,4413.9,4413.8,53.391]
[1755387078223,1.68462075,4413.9,4413.8,53.387]
[1755387078425,1.68462075,4413.9,4413.8,20.759]
[1755387081127,1.68446223,4413.9,4413.8,20.759]
[1755387082928,1.68446223,4413.9,4413.8,21.1323]
[1755387085024,1.68446223,4413.9,4413.8,21.308]
[1755387085228,1.68446223,4413.9,4413.8,21.8107]
[1755387086727,1.68454422,4413.9,4413.8,21.8107]
[1755387093732,1.68454422,4413.9,4413.8,21.5611]
[1755387093932,0.23194422,4413.9,4413.8,20.75]
[1755387094133,1.25854422,4413.9,4413.8,22.2061]
[1755387095435,1.67964422,4413.9,4413.8,22.2061]
[1755387106342,1.67964422,4413.9,4413.8,21.9618]
[1755387113043,1.68097197,4413.9,4413.8,21.9618]
[1755387114249,0.47257197,4413.9,4413.8,21.9618]
[1755387114438,0.23327197,4413.9,4413.8,21.9618]
[1755387114642,0.23327197,4413.9,4413.8,22.2072]
[1755387114836,1.20945359,4415.5,4413.8,22.2072]
[1755387114837,3.8066,4415.2,4415.1,0.3293]
[1755387115044,4.42531697,4415.2,4415.1,21.5753]
[1755387115244,4.42531697,4415.2,4415.1,21.8212]
[1755387115444,4.6759,4415.2,4415.1,21.8212]
[1755387115843,4.3106,4415.2,4415.1,22.0746]
[1755387116043,4.6759,4415.2,4415.1,22.0746]
[1755387118247,3.2078,4415.2,4415.1,22.0746]
[1755387118949,0.2538,4415.6,4415.1,22.0746]
[1755387119149,0.1734,4415.6,4415.5,0.5752]
[1755387119453,0.5387,4415.6,4415.5,22.0695]
[1755387119646,3.2078,4415.7,4415.5,22.0695]
[1755387119846,3.2078,4415.7,4415.6,1.3395]
[1755387120452,3.4616,4415.7,4415.6,1.3395]
[1755387122357,3.2078,4415.7,4415.6,1.3395]
[1755387122652,0.1734,4415.7,4415.6,21.3012]
[1755387122843,1.308,4415.7,4415.6,21.7988]
[1755387123244,1.4681,4415.7,4415.6,22.0655]
[1755387123649,1.4681,4415.7,4415.6,21.8121]
[1755387124751,1.4681,4415.7,4415.6,22.0655]
[1755387126454,1.1028,4415.7,4415.6,22.0655]
[1755387126655,0.8693,4416.1,4415.7,0.5109]
[1755387126855,1.4681,4416.1,4416.0,1.0861]
[1755387127157,1.4681,4416.1,4416.0,22.0615]
[1755387129856,0.8526,4416.1,4416.0,22.0615]
[1755387130057,1.4681,4416.1,4416.0,22.0615]
[1755387133461,1.4681,4416.1,4416.0,20.8836]
[1755387134057,1.4681,4416.1,4415.7,0.2667]
[1755387134266,0.5988,4415.9,4415.8,20.714]
[1755387134462,1.4681,4415.9,4415.8,20.9807]
[1755387134657,1.4681,4415.9,4415.8,21.3865]
[1755387134857,1.4681,4415.9,4415.8,21.5542]
[1755387135262,1.4681,4415.9,4415.8,21.8001]
[1755387136461,1.4681,4415.9,4415.8,22.0535]
[1755387139068,3.2078,4416.2,4415.9,0.5345]
[1755387139263,1.5006,4416.5,4416.4,1.3639]
[1755387139477,1.5006,4416.5,4416.4,21.816]
[1755387140274,1.5006,4416.5,4416.4,20.71]
[1755387141377,1.5006,4416.5,4416.4,20.9761]
[1755387143978,1.5006,4416.5,4416.4,21.2219]
[1755387145781,1.5006,4416.5,4416.4,21.3879]
[1755387146282,1.70680807,4416.5,4416.4,21.3879]
[1755387147082,1.70681129,4416.5,4416.4,21.3879]
[1755387148677,1.70681129,4416.5,4416.4,21.1421]
[1755387148879,0.5884,4415.7,4415.6,4.3138]
[1755387149180,1.5006,4415.7,4415.6,25.2747]
[1755387149380,0.5204,4415.7,4415.6,25.2747]
[1755387149574,0.2555,4415.7,4415.6,25.2747]
[1755387150983,0.2649,4415.9,4415.6,25.2747]
[1755387151184,0.2555,4415.9,4415.7,0.7698]
[1755387151380,0.2555,4415.9,4415.8,1.3639]
[1755387153082,0.5204,4416.7,4416.0,1.106]
[1755387153382,1.70716827,4416.6,4416.5,0.854]
[1755387153582,1.70716827,4416.6,4416.5,21.553]
[1755387155885,1.70716827,4416.6,4416.5,21.3072]
[1755387156184,1.70723004,4416.6,4416.5,21.3072]
[1755387156588,0.46213004,4416.6,4416.5,22.0629]
[1755387156782,0.20663004,4416.6,4416.5,22.0629]
[1755387157283,3.7282,4417.0,4416.9,1.3639]
[1755387157586,3.93486613,4417.0,4416.9,22.0609]
[1755387157776,3.41446613,4417.0,4416.9,22.0609]
[1755387157982,3.66996613,4417.0,4416.9,22.0609]
[1755387158186,3.41446613,4417.0,4416.9,22.0609]
[1755387158382,0.1,4418.2,4416.9,22.0609]
[1755387158383,0.2555,4417.3,4416.9,22.0609]
[1755387158579,1.5006,4417.3,4417.2,0.5941]
[1755387158784,1.7071961,4417.3,4417.2,1.3639]
[1755387160386,1.5006,4417.3,4417.2,1.3639]
[1755387161485,1.5006,4417.3,4416.6,3.2078]
[1755387161687,0.5884,4416.7,4416.6,3.8019]
[1755387161882,1.5006,4416.7,4416.6,25.0068]
[1755387162083,1.5006,4416.7,4416.6,25.2647]
[1755387162883,0.9349,4416.7,4416.6,25.2647]
[1755387163083,0.3918,4417.0,4416.6,25.2647]
[1755387163287,0.2555,4416.9,4416.8,0.5941]
[1755387163490,0.2555,4416.9,4416.8,1.3639]
[1755387163992,1.5006,4416.9,4416.8,1.3639]
[1755387164193,1.5006,4416.9,4416.8,1.106]
[1755387164490,0.6567,4417.3,4416.8,1.3639]
[1755387164685,3.2078,4417.5,4417.2,0.5119]
[1755387164883,3.2078,4417.5,4416.7,0.45253]
[1755387164884,3.4727,4417.5,4417.4,0.5941]
[1755387165083,3.4727,4417.5,4417.4,1.3639]
[1755387165084,4.4529,4417.5,4417.4,1.3639]
[1755387165284,4.7084,4417.5,4417.4,1.3639]
[1755387166886,4.7084,4417.5,4417.4,1.106]
[1755387167385,4.7084,4417.5,4417.4,0.166]
[1755387167584,1.5006,4416.9,4416.7,0.2458]
[1755387167786,0.1,4418.2,4416.0,0.5119]
[1755387167787,0.5884,4416.6,4416.0,0.5119]
[1755387167992,1.5006,4416.1,4416.0,1.106]
[1755387168297,1.5006,4416.1,4416.0,22.0509]
[1755387170391,1.5006,4416.1,4416.0,21.793]
[1755387171189,1.5006,4416.1,4416.0,22.0456]
[1755387172090,1.5006,4416.1,4415.8,3.2078]
[1755387172091,0.5967,4415.9,4415.8,3.2078]
[1755387172298,1.489,4415.9,4415.8,20.686]
[1755387172597,1.489,4415.9,4415.8,21.7871]
[1755387176799,0.5065,4415.9,4415.8,22.0397]
[1755387177298,1.0654,4415.9,4415.8,22.0397]
[1755387177599,1.489,4415.9,4415.8,22.0397]
[1755387183100,0.5967,4415.9,4415.8,20.682]
[1755387183293,0.5967,4415.9,4415.8,20.681]
[1755387183501,0.5967,4415.9,4415.8,21.7821]
[1755387183699,0.5967,4415.4,4415.3,35.8148]
[1755387183896,1.489,4415.4,4415.3,56.4958]
[1755387184104,1.489,4415.4,4415.3,56.7609]
[1755387184500,1.489,4415.4,4415.3,57.0037]
[1755387185003,1.489,4415.4,4415.3,57.2563]
[1755387191112,1.489,4415.4,4415.3,25.2425]
[1755387194502,1.489,4415.4,4415.3,24.9899]
[1755387200313,1.489,4415.4,4415.3,25.2366]
[1755387208730,1.489,4415.4,4415.3,23.8888]
[1755387208930,1.489,4415.4,4415.3,24.4031]
[1755387209332,1.489,4415.4,4415.3,24.7368]
[1755387209532,1.489,4415.4,4415.3,24.9894]
[1755387213839,1.489,4415.4,4415.3,3.2078]
[1755387214029,1.489,4415.4,4415.3,23.8738]
[1755387216034,1.489,4415.4,4415.3,20.666]
[1755387216437,0.5967,4415.4,4415.3,20.665]
[1755387216934,1.4727,4415.4,4415.3,20.665]
[1755387217532,1.4727,4415.4,4415.3,21.7646]
[1755387217731,0.849,4415.9,4415.8,0.6726]
[1755387218039,0.876,4416.9,4416.0,0.5133]
[1755387218232,0.6074,4416.9,4416.8,0.1722]
[1755387218430,0.6074,4416.9,4416.8,21.3495]
[1755387218832,0.2416,4416.9,4416.8,22.0103]
[1755387219135,0.5038,4416.9,4416.8,22.0103]
[1755387219337,1.048,4416.9,4416.8,22.0103]
[1755387219538,1.28112057,4416.9,4416.8,21.84049663]
[1755387220035,0.2622,4417.4,4416.8,21.68149663]
[1755387220236,1.4834,4417.0,4416.9,20.8245]
[1755387220739,1.4834,4417.0,4416.9,21.3378]
[1755387220938,1.4834,4417.0,4416.9,21.7307]
[1755387225540,1.4834,4417.0,4416.9,20.663]
[1755387226231,3.2304,4417.7,4416.9,21.0771]
[1755387226435,0.172,4417.1,4417.0,1.0677]
[1755387226733,1.4834,4417.1,4417.0,1.0677]
[1755387228734,0.4136,4417.1,4417.0,1.0677]
[1755387228935,0.2416,4417.1,4417.0,1.1554]
[1755387229155,3.2078,4417.7,4417.5,1.0921]
[1755387229437,1.4754,4418.1,4418.0,1.0921]
[1755387229639,1.70746153,4418.1,4418.0,21.7451]
[1755387231140,0.6707,4418.1,4418.0,21.7451]
[1755387231334,0.1,4418.2,4418.0,21.7451]
[1755387231335,0.3441,4418.2,4418.1,1.1798]
[1755387233043,0.1,4418.2,4418.1,1.1798]
[1755387233536,0.3441,4418.2,4418.1,1.1798]
[1755387233739,0.1,4418.2,4418.1,1.1798]
[1755387233938,1.192,4418.2,4418.1,0.5723]
[1755387234143,1.5754,4418.2,4418.1,20.65]
[1755387234332,0.2569,4417.8,4417.4,3.2078]
[1755387234539,1.4754,4417.5,4417.4,4.2999]
[1755387234738,1.4754,4417.5,4417.4,24.9489]
[1755387235644,0.2441,4417.5,4417.4,25.0366]
[1755387235942,0.4079,4417.9,4417.8,1.0921]
[1755387236143,0.2441,4417.9,4417.8,21.8268]
[1755387236441,0.1,4418.2,4418.1,0.5723]
[1755387236737,0.1,4418.2,4418.1,21.8268]
[1755387237141,0.3441,4418.2,4418.1,21.8268]
[1755387237544,0.1,4418.2,4418.1,21.8268]
[1755387238344,0.7648,4418.2,4418.1,21.7391]
[1755387238642,0.3441,4418.2,4418.1,21.8268]
[1755387239546,0.1,4418.2,4418.1,21.8268]
[1755387239740,0.3441,4418.2,4418.1,21.8268]
[1755387241249,1.5754,4418.2,4418.1,21.7391]
[1755387241447,1.5754,4418.2,4418.1,20.9125]
[1755387241748,1.5754,4418.2,4418.1,21.1668]
[1755387241948,1.5754,4418.2,4418.1,21.7391]
[1755387243544,0.1,4418.2,4418.1,21.7391]
[1755387243748,0.1,4418.2,4418.1,21.8268]
[1755387244246,0.3441,4418.2,4418.1,21.8268]
[1755387245051,0.7707,4418.2,4418.1,21.8268]
[1755387245247,0.1,4418.2,4418.1,21.7391]
[1755387245450,0.3441,4418.2,4418.1,21.8268]
[1755387245753,1.5754,4418.2,4418.1,1.0921]
[1755387245950,1.5754,4418.2,4418.0,3.2078]
[1755387246154,1.5754,4418.2,4418.1,20.64]
[1755387246347,1.5754,4418.2,4418.1,21.4778]
[1755387246547,1.5754,4418.2,4418.1,21.7321]
[1755387248755,1.5754,4418.2,4418.1,21.4778]
[1755387249055,1.5754,4418.2,4418.1,21.7321]
[1755387251950,1.5754,4418.2,4418.1,21.0735]
[1755387252153,0.5851,4417.7,4417.6,0.8266]
[1755387252360,0.5851,4417.7,4417.6,21.4636]
[1755387252862,0.5851,4417.7,4417.6,21.7291]
[1755387253162,1.092,4417.7,4417.6,21.8168]
[1755387253358,0.2441,4417.7,4417.6,21.8168]
[1755387255059,0.2441,4418.1,4418.0,1.0395]
[1755387255364,0.3441,4418.2,4418.1,1.1798]
[1755387257164,0.1,4418.2,4418.1,1.1798]
[1755387257365,0.3441,4418.2,4418.1,1.1798]
[1755387257856,0.3441,4418.2,4418.1,1.0921]
[1755387258054,1.1541,4418.2,4418.1,1.0921]
[1755387258258,0.7707,4418.2,4418.1,1.0921]
[1755387258458,0.3441,4418.2,4418.1,1.1798]
[1755387258959,0.1,4418.2,4418.1,1.0921]
[1755387259161,0.3532,4418.2,4418.1,1.1806]
[1755387259371,0.5984,4418.2,4418.1,1.1806]
[1755387259554,1.1797,4418.2,4418.0,35.7958]
[1755387259762,1.5763,4418.2,4418.1,20.634]
[1755387260368,1.5763,4418.2,4418.1,21.7184]
[1755387265565,1.5763,4418.2,4418.0,35.7958]
[1755387265770,1.5763,4418.2,4418.1,20.632]
[1755387266859,1.5763,4418.2,4418.1,21.3123]
[1755387267170,1.5763,4418.2,4418.1,21.0671]
[1755387267367,1.5763,4418.2,4418.1,20.632]
[1755387272474,1.5763,4418.2,4418.1,20.8987]
[1755387272774,1.5763,4418.2,4418.1,21.1439]
[1755387273978,1.5763,4418.2,4418.1,21.3123]
[1755387275564,1.5763,4418.2,4418.1,21.0671]
[1755387275878,1.5763,4418.2,4418.1,20.632]
[1755387280167,1.5763,4418.2,4418.1,20.8987]
[1755387281578,1.5763,4418.2,4418.1,21.1439]
[1755387285976,1.5763,4418.2,4418.1,21.3123]
[1755387286181,1.5763,4418.2,4418.1,21.7164]
[1755387292286,1.8181182,4418.2,4418.1,21.7164]
[1755387292885,1.8181182,4418.2,4418.1,20.632]
[1755387293790,1.8181182,4418.2,4418.1,20.8973]
[1755387294182,1.4454,4418.1,4418.0,3.7628]
[1755387294386,1.4454,4418.1,4418.0,24.3848]
[1755387294679,1.4454,4418.1,4418.0,24.8961]
[1755387301091,1.4454,4418.1,4418.0,3.2078]
[1755387301397,1.4454,4417.7,4417.6,32.587]
[1755387301691,1.68723304,4417.7,4417.6,20.619]
[1755387301886,1.4454,4417.7,4417.6,20.619]
[1755387303589,1.4454,4417.7,4416.7,3.2078]
[1755387303793,1.4454,4416.9,4416.8,20.618]
[1755387304503,1.4454,4416.9,4416.8,20.8833]
[1755387304703,1.4454,4416.9,4416.8,21.1293]
[1755387305502,1.4454,4416.9,4416.8,20.8833]
[1755387305699,1.4454,4416.9,4416.8,20.618]
[1755387306606,1.4454,4416.9,4416.8,20.8833]
[1755387306805,1.4454,4416.9,4416.8,21.1293]
[1755387308100,1.4454,4416.9,4416.7,3.2078]
[1755387308401,1.4454,4416.9,4416.8,21.1323]
[1755387308603,1.4454,4416.9,4416.8,20.8863]
[1755387309301,1.4454,4416.9,4416.8,21.1323]
[1755387309501,1.4454,4416.9,4416.8,21.3064]
[1755387310908,1.4454,4416.9,4416.8,21.4465]
[1755387311206,1.4454,4416.9,4416.8,21.6873]
[1755387318018,0.2557,4416.9,4416.8,21.6873]
[1755387318213,0.4179,4417.2,4417.1,0.4149]
[1755387318420,0.5868,4417.2,4417.1,21.6855]
[1755387318714,1.4671,4417.2,4417.1,21.6855]
[1755387327020,1.0417,4417.7,4417.6,0.93]
[1755387327220,1.4496,4417.7,4417.6,21.6854]
[1755387338834,1.4496,4417.7,4417.6,20.615]
[1755387339136,1.4496,4416.9,4416.8,3.4734]
[1755387339434,1.4496,4416.9,4416.8,21.6804]
[1755387342031,1.0623,4416.9,4416.8,1.0704]
[1755387342231,1.0623,4416.9,4416.8,21.6794]
[1755387342434,1.4496,4416.9,4416.8,21.6794]
[1755387345131,1.4496,4416.9,4416.4,0.5199]
[1755387345337,0.5693,4416.7,4416.6,0.6827]
[1755387345642,1.4496,4416.7,4416.6,0.8231]
[1755387345839,1.4496,4416.7,4416.6,1.0704]
[1755387346039,0.5693,4416.5,4416.4,0.8161]
[1755387346241,1.4496,4416.5,4416.4,21.6774]
[1755387346929,1.4496,4416.5,4416.4,21.7651]
[1755387346930,0.4046,4416.5,4416.4,21.7651]
[1755387347541,1.4496,4416.5,4416.4,21.6774]
[1755387351244,1.0623,4416.5,4416.4,21.7655]
[1755387351444,0.63,4417.1,4416.5,0.5209]
[1755387351643,3.2078,4417.2,4416.5,0.5209]
[1755387351644,1.2124,4417.0,4416.9,0.8441]
[1755387351849,1.4609,4417.0,4416.9,21.7048]
[1755387352345,1.0794,4417.0,4416.9,21.7048]
[1755387352551,3.2078,4417.2,4416.9,21.7048]
[1755387352846,1.4609,4417.1,4417.0,1.0988]
[1755387362659,0.7918,4417.6,4417.5,1.0988]
[1755387362853,1.2922,4417.6,4417.5,21.7018]
[1755387363055,1.4609,4417.6,4417.5,21.7018]
[1755387364354,1.2124,4417.6,4417.5,21.7018]
[1755387364557,0.2416,4417.8,4417.7,0.141]
[1755387364763,0.2416,4418.1,4418.0,1.0459]
[1755387365053,0.3416,4418.2,4418.1,0.609]
[1755387365353,1.3193,4418.2,4418.1,1.0988]
[1755387365759,1.5609,4418.2,4418.1,1.0988]
[1755387366359,0.3416,4418.2,4418.1,1.0988]
[1755387366560,0.3416,4418.2,4418.1,1.1869]
[1755387366760,0.1,4418.2,4418.1,1.1869]
[1755387367064,0.3416,4418.2,4418.1,1.1869]
[1755387367454,0.5901,4418.2,4418.1,1.1869]
[1755387367759,0.1,4418.2,4418.1,1.0988]
[1755387368062,0.1,4418.2,4418.1,1.1869]
[1755387368359,0.3416,4418.2,4418.1,1.1869]
[1755387370166,0.1,4418.2,4418.1,4.1869]
[1755387371160,0.3416,4418.2,4418.1,4.1869]
[1755387371362,0.7622,4418.2,4418.1,1.0988]
[1755387371559,1.5609,4418.2,4418.1,1.0988]
[1755387371862,1.5609,4418.2,4417.9,3.2078]
[1755387371863,0.6893,4418.2,4417.9,3.2078]
[1755387372063,0.5893,4418.1,4418.0,20.8612]
[1755387372261,0.5893,4418.1,4418.0,21.1159]
[1755387372458,1.4609,4418.1,4418.0,21.6938]
[1755387375565,1.4609,4418.1,4418.0,21.0379]
[1755387375961,1.4609,4418.1,4418.0,21.2926]
[1755387377166,1.4609,4418.1,4418.0,21.6938]
[1755387379667,1.0794,4418.1,4418.0,21.6938]
[1755387379966,1.4511,4418.1,4418.0,20.591]
[1755387381562,0.8703,4418.0,4417.9,3.2078]
[1755387381765,1.4575,4418.0,4417.9,23.7978]
[1755387381965,1.4575,4418.0,4417.9,20.59]
[1755387387171,1.4575,4418.0,4417.9,20.856]
[1755387388769,1.4575,4418.0,4417.9,24.8797]
[1755387388970,1.4575,4418.0,4417.9,21.6719]
[1755387389269,0.1,4418.2,4417.9,21.4059]
[1755387389470,0.1,4418.2,4418.1,1.1699]
[1755387391073,0.3443,4418.2,4418.1,1.1699]
[1755387391770,0.5986,4418.2,4418.1,1.1699]
[1755387392072,0.7719,4418.2,4418.1,1.1699]
[1755387392474,0.3443,4418.2,4418.1,1.1699]
[1755387392876,0.9703,4418.2,4418.1,1.1699]
[1755387393172,0.3443,4418.2,4418.1,1.1699]
[1755387395077,0.1,4418.2,4418.1,1.1699]
[1755387395681,0.3443,4418.2,4418.1,1.1699]
[1755387395976,0.1,4418.2,4418.1,1.1925]
[1755387398069,0.1,4418.2,4418.1,1.1699]
[1755387398467,0.3443,4418.2,4418.1,1.1699]
[1755387401878,1.5575,4418.2,4418.1,1.0819]
[1755387403174,0.7719,4418.2,4418.1,1.1699]
[1755387403676,0.5176,4418.2,4418.1,1.1699]
[1755387403877,0.3443,4418.2,4418.1,1.1699]
[1755387404675,0.1,4418.2,4418.1,1.1699]
[1755387407879,0.3443,4418.2,4418.1,1.1699]
[1755387408079,0.3443,4418.2,4418.1,33.7559]
[1755387408480,0.5986,4418.2,4418.1,33.7559]
[1755387408778,1.1436,4418.2,4418.1,33.7559]
[1755387408971,1.5575,4418.2,4418.1,53.163]
[1755387409170,1.5575,4418.2,4418.1,33.1019]
[1755387409380,1.5575,4418.2,4418.1,53.6789]
[1755387410378,0.3443,4418.2,4418.1,53.6789]
[1755387410576,0.3443,4418.2,4418.1,53.7672]
[1755387410776,0.3492,4418.2,4418.1,53.7672]
[1755387411480,0.6067,4418.2,4418.1,53.7672]
[1755387411686,1.1534,4418.2,4418.1,53.7672]
[1755387416182,1.393,4418.2,4418.1,53.6789]